bitfinex/quotes_ETHUSD_20241109
["timestamp","ask_amount","ask_price","bid_price","bid_amount"]
[1731181529057,0.7822,3067.1,3066.5,3.0]
[1731181529277,0.0625774,3067.0,3066.5,3.0]
[1731181529961,0.8024,3066.9,3066.5,3.0]
[1731181530127,0.0625774,3066.8,3066.2,3.0]
[1731181530539,0.0625774,3066.8,3066.5,3.0]
[1731181530846,0.8024,3066.9,3066.5,3.0]
[1731181534816,0.8024,3066.9,3066.7,2.68793929]
[1731181535053,0.8024,3067.6,3066.7,2.68793929]
[1731181535253,0.0625774,3067.5,3066.8,3.0]
[1731181535870,0.8024,3067.4,3066.8,3.0]
[1731181536169,0.0625774,3067.3,3066.8,3.0]
[1731181538251,0.8024,3067.4,3066.8,3.2915]
[1731181539431,0.8024,3067.4,3067.0,2.68793929]
[1731181539774,0.8024,3068.2,3067.1,3.0]
[1731181539925,0.8649774,3068.1,3067.1,3.0]
[1731181540370,0.8649774,3068.1,3067.3,2.68793929]
[1731181540574,0.8649774,3068.1,3067.4,3.0]
[1731181540756,0.8649774,3068.1,3067.0,2.68793929]
[1731181540963,0.8649774,3068.1,3067.1,3.0]
[1731181541833,0.8649774,3068.1,3066.8,3.0]
[1731181541834,0.01,3067.8,3066.8,3.0]
[1731181542134,0.01,3067.8,3066.6,0.46004535]
[1731181542135,0.8024,3067.7,3066.6,0.16854535]
[1731181542340,0.8024,3067.5,3066.8,3.0]
[1731181542558,0.0625774,3067.4,3066.8,3.0]
[1731181543330,0.8024,3067.3,3066.4,2.68793929]
[1731181543535,0.8024,3067.1,3066.5,3.0]
[1731181543772,0.0625774,3067.0,3066.5,3.0]
[1731181544434,0.0625774,3067.6,3066.8,3.0]
[1731181544949,0.8024,3067.5,3066.8,3.0]
[1731181545159,0.0625774,3067.4,3066.8,3.0]
[1731181546239,0.8024,3067.3,3066.8,3.0]
[1731181546442,0.0625774,3067.2,3066.8,3.0]
[1731181550174,0.8036,3067.1,3066.5,3.0]
[1731181550408,0.0625774,3067.0,3066.5,3.0]
[1731181551616,0.8036,3066.9,3066.5,3.0]
[1731181551917,0.0625774,3066.8,3066.5,3.0]
[1731181552909,0.8036,3066.7,3066.1,2.68793929]
[1731181553118,0.0625774,3066.6,3066.1,2.68793929]
[1731181554113,0.0625774,3066.6,3066.2,3.0]
[1731181558128,0.73957238,3066.6,3066.2,3.0]
[1731181558283,0.0625774,3066.6,3066.2,3.0]
[1731181558812,0.73957238,3066.6,3066.2,3.0]
[1731181559025,0.0625774,3066.6,3066.2,3.0]
[1731181559365,0.67699498,3066.7,3066.5,3.0]
[1731181559507,1.48059498,3066.9,3066.5,3.0]
[1731181559678,0.8036,3066.9,3066.5,3.0]
[1731181560513,0.0625774,3066.8,3066.5,3.0]
[1731181562601,0.73957238,3066.8,3066.5,3.0]
[1731181563010,0.73957238,3066.8,3066.2,0.2915]
[1731181563011,0.8036,3066.7,3066.2,3.0]
[1731181564006,0.8036,3066.7,3065.8,0.46446135]
[1731181564007,0.8036,3066.3,3065.9,3.0]
[1731181564185,0.0625774,3066.2,3065.9,3.0]
[1731181564517,0.74450798,3066.2,3065.9,3.0]
[1731181565584,0.68193058,3066.1,3065.9,3.0]
[1731181566095,0.68193058,3066.0,3065.6,3.0]
[1731181566636,1.54810798,3065.9,3065.2,0.2915]
[1731181566812,0.68193058,3065.7,3065.2,0.2915]
[1731181567041,0.68193058,3065.5,3065.4,2.68793929]
[1731181567355,1.02289588,3065.7,3065.4,2.68793929]
[1731181567356,0.68193058,3065.7,3065.4,2.68793929]
[1731181567525,0.68193058,3065.8,3065.4,2.68793929]
[1731181567857,0.68193058,3065.8,3065.7,2.68793929]
[1731181568016,0.68193058,3066.1,3065.8,3.0]
[1731181568761,0.74450798,3066.0,3065.8,3.0]
[1731181569237,0.74450798,3066.0,3065.7,2.68793929]
[1731181569238,0.0625774,3065.9,3065.5,3.0]
[1731181569423,0.74450798,3065.9,3065.5,3.0]
[1731181569758,0.68193058,3065.7,3065.5,3.0]
[1731181569915,0.68193058,3065.7,3065.2,3.17270521]
[1731181570121,0.74450798,3065.6,3065.2,3.0]
[1731181571424,1.00160837,3065.6,3065.1,2.68793929]
[1731181571619,0.68193058,3065.4,3064.8,2.68793929]
[1731181571871,0.0625774,3065.3,3064.8,2.68793929]
[1731181572723,0.0625774,3065.4,3064.9,3.0]
[1731181573177,0.0625774,3065.4,3065.1,2.68793929]
[1731181573378,0.0625774,3065.4,3065.2,3.0]
[1731181573563,0.8132,3065.5,3065.2,3.0]
[1731181573873,0.68193058,3065.8,3065.5,3.0]
[1731181574036,1.55770798,3065.9,3065.5,3.0]
[1731181574239,0.8757774,3065.9,3065.5,3.0]
[1731181574645,0.0625774,3065.9,3065.5,3.0]
[1731181574843,0.0625774,3066.0,3065.5,3.0]
[1731181575839,0.0625774,3066.0,3065.2,3.17363369]
[1731181575840,0.8132,3065.9,3065.2,3.17363369]
[1731181576037,0.0625774,3065.8,3065.2,3.0]
[1731181576349,0.25244473,3065.8,3065.2,3.0]
[1731181576732,0.0625774,3065.8,3065.2,3.0]
[1731181580280,0.8077,3065.7,3064.9,3.0]
[1731181580448,0.8077,3065.5,3064.9,3.0]
[1731181580635,0.0625774,3065.4,3064.9,3.0]
[1731181583247,0.8077,3065.3,3064.9,3.0]
[1731181583446,0.0625774,3065.2,3064.9,3.0]
[1731181585139,0.8077,3065.6,3065.1,2.68793929]
[1731181585377,0.0625774,3066.0,3065.5,3.2915]
[1731181585541,0.0625774,3066.1,3065.7,2.68793929]
[1731181585753,0.0625774,3066.1,3065.8,3.0]
[1731181590292,0.0625774,3066.1,3065.5,0.2915]
[1731181590490,0.0625774,3066.1,3065.5,3.2915]
[1731181590867,0.0625774,3066.1,3065.5,3.0]
[1731181591284,0.25189473,3066.1,3065.5,3.0]
[1731181595603,1.27479061,3066.1,3065.5,3.0]
[1731181597089,0.8105,3065.9,3065.5,3.0]
[1731181597291,0.0625774,3065.8,3065.5,3.0]
[1731181597501,0.0625774,3065.8,3065.4,2.68793929]
[1731181597502,0.0625774,3065.8,3065.2,3.16774681]
[1731181597672,0.25217473,3065.8,3065.2,3.16774681]
[1731181599390,0.0625774,3065.8,3065.2,3.16774681]
[1731181601766,0.8105,3065.7,3065.2,3.0]
[1731181601996,0.0625774,3065.6,3065.2,3.0]
[1731181602893,1.02289588,3065.8,3065.5,3.0]
[1731181603092,0.8105,3065.9,3065.5,3.0]
[1731181603277,0.0625774,3066.0,3065.5,3.0]
[1731181603491,0.0625774,3066.1,3065.5,3.0]
[1731181604570,1.02289588,3066.3,3065.4,3.0446756]
[1731181604571,1.02289588,3066.3,3066.1,3.0]
[1731181604766,0.0625774,3066.4,3066.1,3.0]
[1731181604980,0.28001352,3066.4,3066.1,3.0]
[1731181605684,0.0625774,3066.4,3066.1,3.0]
[1731181606788,1.08547328,3066.7,3066.1,3.0]
[1731181606978,1.08547328,3066.9,3066.6,2.68793929]
[1731181607379,0.38856084,3066.9,3066.6,2.68793929]
[1731181610531,0.0625774,3066.9,3066.6,2.68793929]
[1731181610975,0.67717642,3067.1,3066.7,3.0]
[1731181611171,0.67717642,3067.2,3066.7,3.0]
[1731181611476,0.73975382,3067.3,3066.7,3.0]
[1731181612375,0.0625774,3067.3,3066.7,3.0]
[1731181614215,0.7958,3067.4,3066.7,3.0]
[1731181614216,0.8583774,3067.4,3066.8,0.2915]
[1731181614817,0.0625774,3067.4,3066.9,2.68793929]
[1731181615117,0.0625774,3067.6,3067.0,3.0]
[1731181615332,0.8583774,3067.7,3067.2,2.68793929]
[1731181615611,0.7958,3067.7,3067.3,3.0]
[1731181616220,0.7958,3067.9,3067.3,3.35670141]
[1731181616411,0.0625774,3067.9,3067.6,3.0]
[1731181617204,0.0625774,3068.0,3067.6,3.0]
[1731181617421,0.11592862,3068.0,3067.6,3.0]
[1731181619611,0.05335122,3068.0,3067.6,3.0]
[1731181619812,0.0625774,3068.2,3067.6,3.0]
[1731181620021,0.05343929,3068.1,3067.6,3.0]
[1731181620388,0.05343929,3068.1,3067.3,0.2915]
[1731181620591,0.8583774,3068.0,3067.2,0.38781717]
[1731181620817,0.91937174,3068.0,3066.9,0.67931717]
[1731181620990,0.91937174,3068.0,3067.1,2.68793929]
[1731181621428,0.91937174,3068.0,3067.4,2.68793929]
[1731181621586,0.06099434,3068.0,3067.7,2.68793929]
[1731181621993,0.0625774,3068.2,3067.8,3.0]
[1731181622601,0.05351719,3068.1,3067.8,3.0]
[1731181622800,0.7958,3068.3,3067.8,3.0]
[1731181622999,0.0625774,3068.9,3067.8,3.35669168]
[1731181623000,0.7958,3068.8,3067.8,3.35669168]
[1731181623221,0.11063232,3068.7,3067.8,3.35669168]
[1731181623422,0.0625774,3068.7,3067.8,3.35669168]
[1731181624740,0.0625774,3068.7,3068.1,3.0]
[1731181625449,0.7958,3068.8,3068.1,3.0]
[1731181625450,0.6083774,3068.8,3068.1,3.0]
[1731181626444,0.02,3069.6,3068.2,0.479]
[1731181626669,0.0480922,3068.7,3068.4,3.0]
[1731181626815,0.02,3069.6,3068.4,3.0]
[1731181627015,0.04874624,3069.5,3068.4,3.0]
[1731181627527,0.04874624,3069.5,3068.5,0.479]
[1731181628123,0.04874624,3069.5,3068.6,2.68793929]
[1731181628325,0.04874624,3069.5,3068.7,3.0]
[1731181628523,0.7958,3069.8,3068.5,0.479]
[1731181628859,0.7958,3069.3,3068.1,3.479]
[1731181629167,0.42890281,3069.7,3068.1,3.479]
[1731181629168,0.84433514,3069.2,3068.1,3.479]
[1731181629944,0.84433514,3069.2,3068.1,0.479]
[1731181630321,0.7958,3069.2,3068.1,0.479]
[1731181630526,0.04845691,3069.1,3068.6,3.0]
[1731181630744,0.7958,3069.2,3068.6,3.0]
[1731181631357,0.7958,3069.2,3068.4,0.479]
[1731181632242,0.8076,3069.7,3068.6,3.0]
[1731181632430,0.8076,3069.7,3068.7,0.54416419]
[1731181633374,0.8076,3069.7,3068.2,0.479]
[1731181633536,0.8076,3069.7,3068.6,3.479]
[1731181633730,0.0440296,3069.6,3068.6,3.54416863]
[1731181633930,0.8076,3069.7,3068.6,3.54416863]
[1731181634374,0.8076,3069.7,3068.8,2.68793929]
[1731181634578,0.8076,3069.7,3068.9,3.0]
[1731181634787,0.8076,3069.7,3068.9,3.06516309]
[1731181635650,0.8076,3069.7,3068.9,3.0]
[1731181635967,0.8076,3070.1,3069.1,2.68793929]
[1731181636175,0.8076,3070.1,3069.2,3.0]
[1731181636382,0.04028595,3070.0,3069.2,3.0]
[1731181636670,0.8076,3070.1,3069.2,3.0]
[1731181637662,0.04028595,3070.0,3069.2,3.0]
[1731181638751,0.04028595,3070.0,3069.5,3.0]
[1731181638968,0.04028595,3070.0,3069.5,3.479]
[1731181639283,0.01,3070.8,3069.5,3.5441521]
[1731181639284,0.8076,3070.7,3069.5,3.5441521]
[1731181639451,0.04024374,3069.9,3069.5,3.5441521]
[1731181639654,0.8076,3070.7,3069.5,3.5441521]
[1731181639843,0.03683144,3069.8,3069.5,3.5441521]
[1731181640038,0.8076,3070.7,3069.5,3.5441521]
[1731181640672,0.8076,3070.7,3070.0,2.68793929]
[1731181640977,0.8076,3070.7,3070.1,3.0]
[1731181641780,0.8076,3070.7,3069.8,3.0]
[1731181642484,0.8076,3070.7,3069.5,0.479]
[1731181642686,0.55,3070.6,3069.5,3.0]
[1731181642842,0.8076,3070.2,3068.9,3.16693929]
[1731181643043,0.8076,3070.0,3068.9,2.68793929]
[1731181643990,0.55,3069.9,3068.4,0.479]
[1731181644154,0.8076,3069.8,3068.4,0.479]
[1731181644358,0.55,3069.7,3068.4,0.85429021]
[1731181644679,0.8076,3069.6,3068.5,0.06516959]
[1731181644888,0.8076,3069.6,3068.4,0.85429021]
[1731181645595,0.55,3069.3,3068.1,0.85429021]
[1731181645795,0.8076,3069.2,3067.8,3.16693929]
[1731181646299,0.8076,3068.9,3067.7,0.16774139]
[1731181646467,0.55,3068.8,3067.5,3.0632295]
[1731181646671,0.8076,3068.7,3067.5,3.0632295]
[1731181648055,0.8076,3068.7,3067.6,3.0]
[1731181648487,0.55,3068.6,3067.6,3.0]
[1731181648692,0.8076,3068.5,3067.6,3.0]
[1731181650867,0.55,3068.4,3067.2,2.68793929]
[1731181651200,0.8159,3068.5,3067.2,2.68793929]
[1731181651364,0.55,3068.4,3067.2,2.68793929]
[1731181651563,0.8159,3068.5,3067.2,2.68793929]
[1731181652370,0.8159,3068.3,3067.3,3.0]
[1731181653277,0.8159,3068.3,3067.8,2.68793929]
[1731181653483,0.8159,3068.3,3067.9,3.0]
[1731181654075,0.8159,3068.7,3067.9,3.0]
[1731181659621,0.8159,3068.7,3068.0,0.479]
[1731181660378,0.8159,3068.7,3067.9,3.0]
[1731181660627,0.8259,3068.7,3067.3,0.479]
[1731181660836,0.55,3068.4,3067.1,0.479]
[1731181661143,0.8159,3068.3,3067.1,0.479]
[1731181661604,0.8159,3068.1,3067.1,0.479]
[1731181662194,0.8159,3068.1,3066.9,3.16693929]
[1731181662808,0.8159,3068.1,3067.0,3.0]
[1731181664438,0.55,3068.0,3066.9,3.16693929]
[1731181664597,0.8159,3067.9,3066.9,2.68793929]
[1731181665835,0.8159,3067.9,3067.0,3.0]
[1731181666020,0.8159,3067.9,3067.3,3.0]
[1731181667498,0.8159,3068.5,3067.5,2.68793929]
[1731181667698,0.98587307,3068.5,3067.5,2.75313081]
[1731181667923,0.8159,3068.5,3067.6,3.0]
[1731181673699,1.3306,3068.4,3067.2,0.17387106]
[1731181673922,1.3306,3068.4,3067.1,0.479]
[1731181673923,0.7806,3068.3,3067.1,0.479]
[1731181674643,0.7806,3068.3,3067.2,0.06519796]
[1731181675146,0.7806,3068.3,3067.2,2.75313725]
[1731181675307,0.7806,3068.3,3067.3,3.0]
[1731181679842,0.7806,3068.3,3067.3,3.16863025]
[1731181680609,0.7806,3068.3,3067.3,3.0]
[1731181680910,0.7806,3068.1,3066.9,2.68793929]
[1731181681121,0.7806,3067.9,3066.6,3.5422295]
[1731181681610,0.7806,3067.9,3066.9,2.68793929]
[1731181682114,0.7806,3067.9,3067.0,3.0]
[1731181682937,0.7806,3067.9,3066.6,0.64899595]
[1731181682938,0.7806,3067.9,3067.5,2.68793929]
[1731181683140,0.7806,3067.9,3067.6,3.0]
[1731181683347,0.7806,3068.5,3067.6,3.0]
[1731181683746,0.7806,3068.5,3067.8,2.68793929]
[1731181684064,0.7806,3068.5,3067.9,3.0]
[1731181684559,0.7806,3068.5,3067.7,0.479]
[1731181686872,0.7806,3068.5,3067.8,0.06518665]
[1731181687166,0.7806,3068.5,3067.7,0.479]
[1731181687473,0.7806,3068.5,3067.8,0.06518665]
[1731181687685,0.7806,3068.5,3067.6,3.17220344]
[1731181688448,1.45221296,3068.5,3067.7,0.06518663]
[1731181688860,0.67161296,3068.2,3067.7,0.06518663]
[1731181689187,0.67161296,3068.2,3067.6,3.17220344]
[1731181689346,1.45221296,3068.5,3068.2,3.0]
[1731181689749,0.67161296,3068.7,3068.4,2.68793929]
[1731181689985,1.45221296,3069.0,3068.5,3.0]
[1731181690163,1.45221296,3069.0,3068.5,3.06517068]
[1731181690790,0.67161296,3069.0,3068.8,3.0]
[1731181690988,0.67161296,3069.0,3068.8,3.06516478]
[1731181692187,0.67161296,3069.0,3068.8,3.0]
[1731181692346,0.67161296,3069.0,3068.8,3.06516087]
[1731181692696,1.00811773,3069.1,3068.9,0.479]
[1731181692848,1.00811773,3069.1,3069.0,2.75309799]
[1731181693185,1.00811773,3069.1,3069.0,5.75309799]
[1731181694283,1.00811773,3069.1,3069.0,5.68793929]
[1731181694609,0.35601773,3069.1,3069.0,5.68793929]
[1731181695296,0.35601773,3069.1,3069.0,5.75309744]
[1731181695297,0.05601773,3069.1,3069.0,5.75309744]
[1731181695449,0.7533,3070.1,3069.1,3.0]
[1731181699015,0.7533,3070.4,3069.9,3.0]
[1731181699314,0.7533,3070.4,3069.9,3.06514085]
[1731181699609,0.7533,3070.6,3070.2,3.0]
[1731181700110,0.0474207,3070.4,3070.2,3.0]
[1731181700694,0.0474207,3070.4,3069.5,0.479]
[1731181700695,0.0474207,3070.4,3069.9,3.0]
[1731181700903,0.7533,3070.2,3069.6,3.0651431]
[1731181701112,0.7533,3070.6,3070.1,2.68793929]
[1731181701300,4.03157172,3071.5,3070.2,3.0]
[1731181701479,0.7533,3070.9,3070.2,3.0]
[1731181701985,0.7533,3070.9,3070.4,2.68793929]
[1731181702193,0.7533,3071.2,3070.4,6.16693929]
[1731181702973,4.03157172,3071.5,3070.4,6.16693929]
[1731181703182,4.78487172,3071.5,3070.5,3.0]
[1731181703378,0.04346811,3071.4,3071.1,3.0]
[1731181703680,4.78487172,3071.5,3071.1,3.0]
[1731181704204,4.03157172,3071.5,3071.1,3.0]
[1731181704715,0.04351799,3071.4,3071.1,3.0]
[1731181706187,0.7533,3071.3,3070.5,3.0]
[1731181706888,0.03943397,3071.2,3070.5,3.0]
[1731181707786,0.03943397,3071.2,3070.3,0.479]
[1731181708091,0.7533,3071.3,3070.3,0.479]
[1731181708635,0.7533,3071.3,3070.2,3.16861465]
[1731181708797,0.7533,3071.3,3070.2,3.0]
[1731181709307,0.7533,3071.3,3070.1,2.68793929]
[1731181709505,0.03944577,3071.2,3070.1,2.68793929]
[1731181709723,0.7533,3071.1,3070.1,2.68793929]
[1731181710082,0.03931791,3071.0,3070.1,2.68793929]
[1731181710483,0.03931791,3071.0,3070.5,3.0]
[1731181710789,0.7533,3071.1,3070.5,3.0]
[1731181711002,0.7533,3071.1,3070.2,3.0]
[1731181712803,0.7533,3071.1,3070.3,0.06512735]
[1731181713636,0.7533,3071.1,3070.2,3.0]
[1731181713793,0.7533,3071.1,3070.1,2.68793929]
[1731181713794,0.7533,3071.1,3069.9,3.0]
[1731181713990,0.7533,3071.1,3070.0,0.06513883]
[1731181714233,0.7533,3071.1,3069.9,3.0]
[1731181714404,0.7533,3071.1,3070.0,0.06513884]
[1731181715332,0.7533,3071.1,3070.2,3.0]
[1731181715538,0.7533,3071.1,3070.2,3.06513411]
[1731181715831,0.55,3071.0,3069.8,0.16744068]
[1731181716041,0.8099,3070.9,3070.1,2.68793929]
[1731181716203,0.85791959,3070.9,3070.2,3.06513408]
[1731181716409,0.8099,3070.9,3070.2,3.06513408]
[1731181716801,0.8099,3070.9,3070.2,3.0]
[1731181718224,0.8099,3070.9,3070.5,3.0]
[1731181720505,0.8099,3070.9,3070.6,0.0651304]
[1731181720709,0.8099,3070.9,3070.6,0.06512655]
[1731181721709,0.8099,3070.9,3070.5,3.0]
[1731181722100,0.8099,3071.4,3070.7,2.68793929]
[1731181722713,0.8099,3071.4,3070.8,0.0651254]
[1731181722898,0.8099,3071.4,3070.8,3.0]
[1731181723300,0.8099,3071.4,3070.5,3.0]
[1731181725927,0.8099,3071.2,3070.2,3.0]
[1731181726326,0.8099,3071.2,3070.3,0.06513011]
[1731181727337,0.8099,3071.2,3070.2,3.0]
[1731181727831,0.8099,3071.2,3070.3,0.06513001]
[1731181728037,0.8099,3071.2,3070.5,3.0]
[1731181729967,0.8099,3071.2,3070.1,2.68793929]
[1731181730173,0.8099,3071.2,3070.2,3.0]
[1731181733633,0.7965,3071.0,3070.2,3.0]
[1731181734336,0.03925213,3070.9,3070.2,3.0]
[1731181734728,0.7965,3071.0,3070.2,3.0]
[1731181734965,1.4676469,3071.0,3070.2,3.0]
[1731181735275,0.03925213,3070.9,3070.2,3.0]
[1731181735643,0.7965,3070.8,3070.2,3.0]
[1731181736145,0.04781853,3070.7,3070.2,3.0]
[1731181736536,1.4676469,3070.6,3069.6,0.479]
[1731181736741,1.71508363,3070.6,3070.0,2.68793929]
[1731181736943,0.7965,3070.6,3070.1,3.06513824]
[1731181737140,0.7965,3070.6,3070.1,3.54413824]
[1731181737550,0.7965,3070.6,3070.4,3.0]
[1731181741767,1.4967469,3070.9,3070.4,3.16760017]
[1731181741964,0.6711469,3070.8,3070.1,3.479]
[1731181742294,0.6711469,3070.8,3070.1,3.65163141]
[1731181742679,0.6711469,3070.8,3070.1,3.17263141]
[1731181742879,0.8256,3070.7,3070.1,3.17263141]
[1731181743120,1.4967469,3070.7,3070.1,3.17263141]
[1731181743284,0.92149363,3070.6,3070.1,3.17263141]
[1731181744009,0.92149363,3070.6,3070.2,0.06513516]
[1731181744208,0.6711469,3070.6,3070.2,0.06513516]
[1731181744525,1.4967469,3070.7,3070.4,3.0]
[1731181745019,0.6711469,3070.6,3070.4,3.0]
[1731181745219,1.4967469,3070.7,3070.4,3.0]
[1731181747088,0.6711469,3070.6,3070.4,3.0]
[1731181747320,0.6711469,3070.5,3070.1,3.17263141]
[1731181747523,0.6711469,3070.5,3070.1,3.0]
[1731181748574,0.6711469,3070.3,3069.8,3.0]
[1731181748740,0.6711469,3070.2,3069.8,3.0]
[1731181748934,0.8256,3070.1,3069.8,3.0]
[1731181749436,1.4967469,3070.1,3069.9,0.39021371]
[1731181749640,1.74709363,3070.1,3070.0,0.39021371]
[1731181750075,2.08266708,3070.1,3070.0,0.39021371]
[1731181750257,1.07594673,3070.1,3070.0,0.39021371]
[1731181750466,1.07594673,3070.1,3069.6,2.68793929]
[1731181750671,0.67961057,3070.0,3069.7,0.38998239]
[1731181750841,0.67961057,3070.0,3069.8,0.38998239]
[1731181751046,0.67961057,3070.0,3069.9,0.38998239]
[1731181751675,0.67961057,3070.0,3069.7,3.0]
[1731181751858,0.67961057,3069.9,3069.7,3.0]
[1731181752059,0.67961057,3070.0,3069.7,3.0]
[1731181752784,0.67961057,3070.0,3069.3,2.85463445]
[1731181752988,0.7789,3069.9,3069.3,2.85463445]
[1731181753158,1.45851057,3069.9,3069.3,2.85463445]
[1731181753361,1.45851057,3069.9,3069.3,2.68793929]
[1731181753873,0.7789,3069.9,3069.3,2.68793929]
[1731181754761,0.7789,3069.8,3069.4,3.0]
[1731181754962,0.67961057,3069.7,3069.1,3.0]
[1731181755500,0.67961057,3069.6,3069.1,3.0]
[1731181755853,0.7789,3069.5,3069.1,3.0]
[1731181756677,0.7789,3069.5,3069.0,2.68793929]
[1731181756884,0.7789,3069.5,3068.7,2.91523829]
[1731181757079,1.45851057,3069.5,3068.7,2.91523829]
[1731181757249,1.70503366,3069.5,3068.8,0.06516458]
[1731181758049,1.70503366,3069.5,3068.8,3.06516458]
[1731181759285,0.67961057,3069.4,3068.8,3.06516458]
[1731181759583,1.70503366,3069.5,3068.8,3.06516458]
[1731181759784,1.45851057,3069.4,3068.8,3.0]
[1731181759986,0.7789,3069.2,3068.7,0.227299]
[1731181760190,1.45851057,3069.2,3068.7,0.227299]
[1731181761571,0.7789,3069.2,3068.7,0.227299]
[1731181766515,0.7789,3069.2,3069.1,3.0]
[1731181766662,0.7789,3069.5,3069.1,3.06515885]
[1731181767016,0.7789,3070.2,3069.5,3.0]
[1731181767173,0.7789,3070.5,3070.1,3.0]
[1731181767995,0.7789,3070.5,3070.0,3.0]
[1731181770618,0.7789,3070.5,3070.3,3.0]
[1731181770987,0.7903,3070.9,3070.3,3.0]
[1731181771181,0.7903,3070.9,3070.0,3.0]
[1731181771376,0.7903,3070.9,3069.7,0.479]
[1731181771585,0.7903,3070.8,3069.7,3.479]
[1731181771912,1.46991057,3070.8,3069.7,3.479]
[1731181772206,1.46991057,3070.8,3069.9,2.68793929]
[1731181772364,0.7903,3070.8,3070.0,3.0]
[1731181773679,1.03796309,3070.8,3070.2,2.68793929]
[1731181773923,1.03796309,3070.8,3070.3,3.0]
[1731181777361,0.7903,3070.8,3070.3,3.0]
[1731181789550,0.7903,3070.8,3070.6,3.0]
[1731181790315,0.7872,3071.2,3070.6,3.0]
[1731181790649,0.7872,3071.2,3070.9,2.68793929]
[1731181791353,0.7872,3071.2,3071.0,3.0]
[1731181802373,0.1414974,3071.5,3071.0,3.0]
[1731181802582,0.1414974,3071.5,3071.4,5.68793929]
[1731181803435,0.1414974,3071.5,3071.4,1.23517445]
[1731181804293,0.1414974,3071.5,3070.9,3.9971434]
[1731181804499,0.7872,3071.4,3070.6,0.56862786]
[1731181804789,0.7872,3071.4,3071.1,1.23517445]
[1731181805407,0.7872,3071.4,3069.6,0.01]
[1731181805696,0.7872,3071.4,3070.5,2.67749042]
[1731181805854,0.7872,3071.4,3070.8,2.67749042]
[1731181806058,1.04870283,3071.4,3070.8,2.67749042]
[1731181806901,0.7872,3071.3,3070.8,2.67749042]
[1731181809095,0.9286974,3071.5,3071.1,2.67749042]
[1731181809395,0.9286974,3071.5,3071.2,3.0]
[1731181810753,0.1414974,3071.5,3071.4,2.67749042]
[1731181810958,0.1414974,3071.5,3071.4,5.67749042]
[1731181811829,0.1414974,3071.5,3071.4,6.67463382]
[1731181812041,0.1414974,3071.5,3071.4,6.15649042]
[1731181813012,0.1414974,3071.5,3071.4,6.54415515]
[1731181813216,0.1414974,3071.5,3071.4,6.15649042]
[1731181813406,0.1414974,3071.5,3071.4,6.54412119]
[1731181813801,0.1414974,3071.5,3071.4,0.38763077]
[1731181814002,0.1414974,3071.5,3071.4,3.06512119]
[1731181814207,0.1414974,3071.5,3071.4,6.06512119]
[1731181815626,0.1414974,3071.5,3071.4,6.54412119]
[1731181816514,0.1414974,3071.5,3071.4,6.15649042]
[1731181816886,0.1414974,3071.5,3071.4,6.54407642]
[1731181817445,0.1414974,3071.5,3071.4,6.15649042]
[1731181818029,0.1414974,3071.5,3071.4,5.67749042]
[1731181820810,0.8112,3071.4,3071.2,0.3228433]
[1731181821014,0.8112,3071.4,3071.1,0.3228433]
[1731181821443,0.8112,3071.4,3071.0,0.3228433]
[1731181821627,0.1632308,3071.3,3071.0,0.3228433]
[1731181821947,0.82110797,3071.5,3071.2,0.479]
[1731181821948,0.1414974,3071.5,3071.2,0.479]
[1731181822104,0.1414974,3071.5,3071.3,2.67749042]
[1731181822941,0.1414974,3071.5,3071.4,3.0]
[1731181826815,0.1414974,3071.5,3071.4,3.06511279]
[1731181827432,0.1414974,3071.5,3071.4,1.23515309]
[1731181830519,0.1414974,3071.5,3071.0,0.479]
[1731181830954,0.1414974,3071.5,3071.4,1.23515309]
[1731181831959,0.20995423,3071.5,3071.4,1.23515309]
[1731181832654,0.20995423,3071.5,3070.3,0.01]
[1731181832655,0.20995423,3071.5,3070.7,0.44292757]
[1731181832816,0.8258,3071.4,3071.3,1.23515309]
[1731181833022,0.99738846,3071.4,3071.3,1.23515309]
[1731181833328,1.06579008,3071.4,3071.3,1.23515309]
[1731181833661,1.74592046,3071.4,3071.1,1.23515309]
[1731181833865,0.8258,3071.2,3070.3,0.479]
[1731181834021,0.8258,3071.2,3071.0,1.23515309]
[1731181834354,0.06826499,3071.1,3071.0,1.23515309]
[1731181838341,0.32770408,3071.1,3071.0,1.23515309]
[1731181840648,0.06826499,3071.1,3071.0,1.23515309]
[1731181844559,0.06821434,3071.1,3071.0,1.23515309]
[1731181844916,0.68013038,3071.4,3071.0,1.23515309]
[1731181845122,0.06830543,3071.3,3071.2,1.23515309]
[1731181845317,0.74843581,3071.3,3071.2,1.23515309]
[1731181845533,0.06830543,3071.3,3071.2,1.23515309]
[1731181847663,0.74843581,3071.3,3071.2,1.23515309]
[1731181848378,0.8258,3071.2,3070.1,0.479]
[1731181848521,1.50722578,3070.8,3070.5,1.23515309]
[1731181848731,0.74925422,3070.7,3069.5,0.91152029]
[1731181848936,0.68142578,3070.5,3070.3,1.23515309]
[1731181849134,1.76694507,3070.6,3070.4,1.47840457]
[1731181849336,0.8258,3070.6,3070.4,2.92143664]
[1731181849529,0.8258,3070.6,3070.5,0.24325148]
[1731181851952,0.6853099,3070.6,3070.5,0.24325148]
[1731181852783,0.6853099,3070.6,3070.2,3.0]
[1731181853070,0.6853099,3070.6,3070.5,0.24315824]
[1731181853276,0.92419734,3070.6,3070.5,0.24315824]
[1731181853440,0.6853099,3070.6,3070.5,0.24315824]
[1731181854069,0.75306751,3070.6,3070.5,0.24315824]
[1731181854273,1.77520619,3070.6,3070.5,0.24315824]
[1731181854570,2.11591908,3070.6,3070.5,0.24315824]
[1731181854869,2.49779404,3070.6,3070.5,0.24315824]
[1731181855075,2.83777303,3070.6,3070.5,0.24315824]
[1731181855569,1.13494247,3070.6,3070.5,0.24315824]
[1731181855734,0.75306751,3070.6,3070.5,0.24315824]
[1731181855943,2.11242443,3070.6,3070.5,0.24315824]